Cogmind - Beta 12 X3 @@@ ROGUE MODE // 2022.09.07 @ 03:25:09 Player: Exp. Geonium Core Result: Self-destructed Performance ------------- Evolutions (7) 3500 Regions Visited (14) 2800 Robots Destroyed (97) 485 Value Destroyed (4126) 4126 Prototype IDs (31) 620 Alien Tech Used (0) 0 Bonus (448) 448 TOTAL SCORE: 11979 Bonus ------- High Alert Combat Kills 808 Follower Combat Kills 726 Entered Garrisons 400 Entered DSFs 500 Aligned with FarCom 300 Friendly Fire -2286 Cogmind --------- Core Integrity 863/1300 Matter 246/300 Energy 117/283 System Corruption 6% Temperature Cool (0) Movement Walking (54) Location -3/Research Parts ------- > --- POWER (4) -------- Multi-Antimatter Reactor > --- PROPULSION (7) --- Myomer-FC Exoskeleton > --- UTILITY (3) ------ Armored Scrap Engine Improved Cooling System > --- WEAPON (7) ------- Fusion Bomb Launcher Ionic Axe Ionic Axe > --- INVENTORY (5) ---- Advanced Coolant Injector Graphene Brace Ionic Axe Ionic Axe Peak State ------------ > --- POWER ------------ Particle Reactor Multi-Antimatter Reactor > --- PROPULSION ------- Myomer-FC Exoskeleton Xenon Bombardment Thruster > --- UTILITY ---------- Armored Scrap Engine Improved Cooling System > --- WEAPON ----------- Rapid Kinetic Penetrator Construct/G Directed Plasma Construct/G Heavy Directed Wave Construct/C Ionic Axe Ionic Axe > --- INVENTORY -------- Graphene Brace Ionic Axe Ionic Axe [Rating: 100] Favorites ----------- Power Multi-Antimatter Reactor Engine Ion Engine Reactor Multi-Antimatter Reactor Propulsion Myomer-FC Exoskeleton Treads Light Treads Leg Myomer-FC Exoskeleton Flight Unit Xenon Bombardment Thruster Utility Armored Scrap Engine Device Armored Scrap Engine Storage Small Storage Unit Processor Machine Analyzer Weapon Heavy Directed Wave Construct/C Energy Gun Directed Plasma Construct/G Energy Cannon Heavy Directed Wave Construct/C Ballistic Gun Rapid Kinetic Penetrator Construct/G Ballistic Cannon Improved Light Cannon Launcher Fusion Bomb Launcher Impact Weapon Hammer Slashing Weapon Katana Build | -11 -10 -10 -10 -9 -8 -7 -7 -6 -6 -5 -4 -4 -4 -3 ------- Run | Scr Mat Min Exi Min Mat Fac Gar Fac Ext Fac Fac DSF Gar Res Slots Evolved 14 | . . . . . 4 2 . 2 . 2 2 . . 2 Power 3 | . . . . . . . . 1 . . . . . 2 Propulsion 5 | . . . . . 2 1 . 1 . . 1 . . . Utility 1 | . . . . . . . . . . 1 . . . . Weapon 5 | . . . . . 2 1 . . . 1 1 . . . Parts Attached 39 | . . 5 . 6 5 4 3 1 2 1 . . 5 7 Power 2 | . . 1 . . . . . . . . . . . 1 Engine 1 | . . 1 . . . . . . . . . . . . Core . | . . . . . . . . . . . . . . . Reactor 1 | . . . . . . . . . . . . . . 1 Propulsion 12 | . . 3 . 2 3 1 . . . . . . . 3 Treads 8 | . . 3 . 2 3 . . . . . . . . . Leg 1 | . . . . . . 1 . . . . . . . . Wheel . | . . . . . . . . . . . . . . . Hover . | . . . . . . . . . . . . . . . Flight 3 | . . . . . . . . . . . . . . 3 Utility 4 | . . 1 . . . 1 . . . 1 . . 1 . Device 3 | . . 1 . . . 1 . . . . . . 1 . Storage . | . . . . . . . . . . . . . . . Processor 1 | . . . . . . . . . . 1 . . . . Hackware . | . . . . . . . . . . . . . . . Protection . | . . . . . . . . . . . . . . . Artifact . | . . . . . . . . . . . . . . . Weapon 21 | . . . . 4 2 2 3 1 2 . . . 4 3 Energy Gun 4 | . . . . 3 . . 1 . . . . . . . Energy Cannon . | . . . . . . . . . . . . . . . Ballistic Gun 4 | . . . . . . 1 2 . . . . . 1 . Ballistic Cannon 2 | . . . . . 1 1 . . . . . . . . Launcher 2 | . . . . 1 . . . . . . . . . 1 Special Weapon . | . . . . . . . . . . . . . . . Impact Weapon 4 | . . . . . 1 . . . 1 . . . 2 . Slashing Weapon 5 | . . . . . . . . 1 1 . . . 1 2 Piercing Weapon . | . . . . . . . . . . . . . . . Special Melee Weapon . | . . . . . . . . . . . . . . . Unidentified Prototypes 2 | . . . . . . 1 . . . . . . . 1 Parts Lost 46 | . . 4 . 3 1 . 5 2 4 . . 2 13 12 Power 8 | . . 1 . . . . . 2 . . . . 3 2 Propulsion 15 | . . 2 . 1 1 . 3 . . . . 2 3 3 Utility 1 | . . . . 1 . . . . . . . . . . Weapon 22 | . . 1 . 1 . . 2 . 4 . . . 7 7 Highest Loss Streak 4 | . . 4 . 3 1 . 4 1 2 . . 2 4 4 To Critical Strikes 1 | . . . . . . . . . . . . . 1 . Average Slot Usage (%) 44 | . 85 75 85 51 48 59 45 48 39 29 31 31 33 45 Engine 2 | . 14 11 14 3 . . . 2 . 4 5 5 1 . Core 1 | . . . . . . . 2 3 1 . . . 2 . Treads 5 | . . 15 28 28 28 30 4 . 1 . . . . . Leg 2 | . 28 11 . . . 1 4 . 1 . . . 3 3 Flight 1 | . . . . . . . 1 6 2 . 5 5 . 4 Device 6 | . . 4 14 3 . 7 7 6 6 5 5 5 5 9 Storage 1 | . 14 14 14 3 . . . . . . . . . . Processor 1 | . . . . . . . . . . 3 5 5 4 . Energy Gun 3 | . . . . 13 9 . 2 4 5 . . . 1 4 Ballistic Gun 5 | . 28 20 14 . . . 10 9 1 2 5 5 3 4 Ballistic Cannon 2 | . . . . . 5 12 5 2 5 . . . . . Impact Weapon 3 | . . . . . 5 7 7 1 2 . . . 3 1 Slashing Weapon 2 | . . . . . . . . 4 5 5 5 5 2 3 Naked Turns . | . . . . . . . . . . . . . . . Heaviest Build 63 | 11 11 12 12 19 14 13 21 26 39 14 14 14 39 63 Greatest Support 138 | 20 20 40 40 40 80 80 80 67 125 138 98 98 130 98 Greatest Overweight (x) 3 | . . . . . . . 3 . . 2 . . 1 . Average Overweight (x) . | . . . . . . . . . . . . . . . Largest Inventory Capacity 8 | . 8 8 8 8 5 5 5 5 5 5 5 5 5 5 Average Capacity 5 | . 8 8 8 5 5 5 5 5 5 5 5 5 5 5 Most Carried 8 | . 8 8 7 8 3 4 2 2 4 4 4 4 4 4 Average Carried 2 | . 6 6 5 2 1 3 . 1 2 4 4 4 2 1 Final Capacity 8 | 8 8 8 8 5 5 5 5 5 5 5 5 5 5 5 Final Carried 8 | 6 8 5 7 1 2 4 . 2 4 4 4 4 . 4 Class Distribution -------------------- 47% | Mutant 43% | Construct 4% | Generator-Construct 4% | Skirmisher Dominant Class ---------------- Mutant | -10/Materials Mutant | -10/Mines Mutant | -10/Exiles Mutant | -9/Mines Skirmisher | -8/Materials Mutant | -7/Factory Construct | -7/Garrison Construct | -6/Factory Construct | -6/Extension Construct | -5/Factory Construct | -4/Factory Construct | -4/DSF Mutant | -4/Garrison Generator-Construct | -3/Research Resources | -11 -10 -10 -10 -9 -8 -7 -7 -6 -6 -5 -4 -4 -4 -3 ----------- Run | Scr Mat Min Exi Min Mat Fac Gar Fac Ext Fac Fac DSF Gar Res Matter Collected 1697 | 196 . 95 . 88 45 . 281 135 395 . . . 207 255 Remotely . | . . . . . . . . . . . . . . . Salvage Created 5073 | . . 130 . 161 370 . 936 176 1110 . . . 1668 522 Parts 209 | . . 10 . . 18 . 44 11 40 . . . 65 21 Haulers Intercepted . | . . . . . . . . . . . . . . . Recyclers Shooed 5 | . . . . . 2 . . . 2 . . . . 1 Parts Field Recycled . | . . . . . . . . . . . . . . . Retrieved Matter . | . . . . . . . . . . . . . . . Parts Self-Destructed . | . . . . . . . . . . . . . . . Prevented . | . . . . . . . . . . . . . . . Kills | -11 -10 -10 -10 -9 -8 -7 -7 -6 -6 -5 -4 -4 -4 -3 ------- Run | Scr Mat Min Exi Min Mat Fac Gar Fac Ext Fac Fac DSF Gar Res Combat Hostiles Destroyed 97 | . . 5 . 11 6 . 22 3 9 . . . 30 11 Melee 25 | . . . . . . . 1 1 7 . . . 12 4 Guns 54 | . . 5 . 10 6 . 15 1 1 . . . 11 5 Cannons 7 | . . . . . . . 4 1 1 . . . 1 . AOE 2 | . . . . 1 . . . . . . . . . 1 Classes Destroyed 14 | . . 2 . 1 3 . 1 3 1 . . . 2 1 Worker 2 | . . . . . . . . 1 1 . . . . . Builder 2 | . . . . . 1 . . . 1 . . . . . Recycler 4 | . . . . . . . . . 4 . . . . . Watcher 1 | . . . . . 1 . . . . . . . . . Swarmer 26 | . . 3 . . . . 7 . . . . . 11 5 Cutter 2 | . . . . . . . . . . . . . 2 . Saboteur 2 | . . . . . . . . . . . . . . 2 Grunt 25 | . . 2 . . 2 . 10 . . . . . 9 2 Brawler 4 | . . . . . . . 2 . . . . . 1 1 Sentry 20 | . . . . . 4 . 3 1 5 . . . 7 . Hunter 2 | . . . . . . . . 1 . . . . . 1 Programmer 1 | . . . . . . . . 1 . . . . . . Assembled 11 | . . . . 11 . . . . . . . . . . Thug 1 | . . . . . . . . . 1 . . . . . Savage 1 | . . . . . . . . . 1 . . . . . Butcher 1 | . . . . . . . . . . . . . 1 . Guerrilla 2 | . . . . . . . . . 2 . . . . . Best Kill Streak 10 | . . 3 . 10 3 . 6 1 4 . . . 4 5 Combat Bots Only 10 | . . 3 . 10 3 . 6 1 4 . . . 4 5 Max Kills in Single Turn 1 | . . 1 . 1 1 . 1 1 1 . . . 1 1 Gunslinging . | . . . . . . . . . . . . . . . Exploded 1 | . . . . 1 . . . . . . . . . 1 Melee 1 | . . . . . . . 1 1 1 . . . 1 1 Uniques/NPCs Destroyed 1 | . . . . . . . . . 1 . . . . . A7 (-6/Extension) Combat | -11 -10 -10 -10 -9 -8 -7 -7 -6 -6 -5 -4 -4 -4 -3 -------- Run | Scr Mat Min Exi Min Mat Fac Gar Fac Ext Fac Fac DSF Gar Res Damage Taken 11301 | . 112 398 . 797 218 . 1312 686 1223 115 . 71 3729 2640 Core 2043 | . 8 48 . 169 17 . 257 104 166 37 . . 800 437 Absorbed by Shields 66 | . . . . . . . . . 66 . . . . . Core Remaining (%) 66 | 100 . . . 10 96 . 63 . 68 96 . . 30 . Volleys Fired 185 | . . 23 . 2 . . 31 14 11 . . . 61 43 Largest 4 | . . 2 . 1 . . 4 4 2 . . . 2 4 Hottest 274 | . . 40 . 30 . . 129 155 85 . . . 136 274 Shots Fired 412 | . . 39 . 34 26 . 104 31 13 . . . 69 96 Gun 345 | . . 39 . 33 26 . 85 18 2 . . . 57 85 Cannon 63 | . . . . . . . 19 13 11 . . . 12 8 Launcher 4 | . . . . 1 . . . . . . . . . 3 Special . | . . . . . . . . . . . . . . . Kinetic 206 | . . 39 . . . . 46 23 11 . . . 43 44 Thermal 202 | . . . . 33 26 . 58 8 2 . . . 26 49 Explosive 4 | . . . . 1 . . . . . . . . . 3 Electromagnetic . | . . . . . . . . . . . . . . . Robot Hit Streak 23 | . . 7 . 7 23 . 21 7 10 . . . 17 11 Robot Miss Streak 6 | . . 2 . 4 1 . 5 5 6 . . . 5 4 Penetration Max 1 | . . . . . . . . . . . . . . 1 Secondary Targets 2 | . . 1 . . . . 1 . . . . . . . Max Gunslinging Chain 1 | . . 1 . . . . 1 . . . . . . . Autonomous 93 | . . . . 33 26 . 34 . . . . . . . Shots Hit Robots 407 | . . 22 . 22 31 . 86 22 51 1 . . 111 61 Core Hits 178 | . . 11 . 16 9 . 39 7 20 . . . 43 33 Critical Kills 3 | . . . . . . . 1 . . . . . 2 . Critical Parts Destroyed 11 | . . . . . 1 . . . 1 . . . 7 2 Critical Strikes 22 | . . . . . 1 . 1 1 3 . . . 12 4 Burn 3 | . . . . . . . . . . . . . 1 2 Destroy 3 | . . . . . . . 1 . . . . . . 2 Smash 11 | . . . . . 1 . . . 1 . . . 9 . Sever 5 | . . . . . . . . 1 2 . . . 2 . Melee Attacks 209 | . . . . . 9 . 29 22 45 2 . . 88 14 Impact 99 | . . . . . 9 . 29 4 6 . . . 50 1 Slashing 110 | . . . . . . . . 18 39 2 . . 38 13 Piercing . | . . . . . . . . . . . . . . . Sneak Attacks 53 | . . . . . 2 . . 2 25 1 . . 23 . Combat Hostiles 1 | . . . . . . . . 1 . . . . . . Follow-up Attacks 8 | . . . . . . . . . 4 . . . 3 1 Damage Inflicted 12458 | . . 227 . 748 903 . 2018 579 2304 65 . . 3388 2226 Guns 5457 | . . 227 . 696 739 . 1554 167 35 . . . 927 1112 Cannons 1107 | . . . . . . . 368 214 220 . . . 103 202 Explosions 747 | . . . . 45 . . . . . . . . . 702 Melee 5136 | . . . . . 164 . 96 198 2048 65 . . 2355 210 Ramming 11 | . . . . 7 . . . . 1 . . . 3 . Kinetic 2525 | . . 227 . . . . 570 317 220 . . . 558 633 Thermal 4039 | . . . . 696 739 . 1352 64 35 . . . 472 681 Explosive 747 | . . . . 45 . . . . . . . . . 702 Electromagnetic . | . . . . . . . . . . . . . . . Impact 2319 | . . . . . 164 . 96 28 386 . . . 1645 . Slashing 2817 | . . . . . . . . 170 1662 65 . . 710 210 Piercing . | . . . . . . . . . . . . . . . Highest Corruption 6 | . 1 1 1 1 . . . 5 5 1 . . 5 6 Average Corruption 3 | . 1 1 1 1 . . . 4 5 1 . . 5 1 Corruption Purged . | . . . . . . . . . . . . . . . Corruption Blocked . | . . . . . . . . . . . . . . . Effects 71 | . . 2 2 3 . . . 8 16 . . . 39 1 Message Errors 13 | . . . . . . . . 2 4 . . . 7 . Matter Fused 11 | . . . 2 1 . . . . 2 . . . 6 . Heat Flow Errors 11 | . . . . . . . . 2 4 . . . 4 1 Energy Discharges 14 | . . 1 . . . . . 1 2 . . . 10 . Parts Rejected 2 | . . 1 . . . . . . 1 . . . . . Data Loss (minor) 10 | . . . . . . . . 1 1 . . . 8 . Data Loss (major) 7 | . . . . 1 . . . 1 2 . . . 3 . Alerts 1 | . . . . . . . . 1 . . . . . . Weapon Failures 2 | . . . . 1 . . . . . . . . 1 . Overload Shots . | . . . . . . . . . . . . . . . Overflow Damage 906 | . . . . . 58 . 8 . 338 . . . 371 131 Projectiles 6 | . . . . . . . 3 . . . . . . 3 Explosions 96 | . . . . . . . . . . . . . . 96 Melee 804 | . . . . . 58 . 5 . 338 . . . 371 32 Knockbacks 8 | . . . . . 1 . . 1 3 . . . 3 . Impact 5 | . . . . . 1 . . . 3 . . . 1 . Kinetic 3 | . . . . . . . . 1 . . . . 2 . Secondary . | . . . . . . . . . . . . . . . Self-Inflicted Damage 174 | . . . . . . . . . . . . . 1 173 Shots 2 | . . . . . . . . . . . . . . 2 Rammed 5 | . . . . 2 . . . . 1 . . . 2 . Targets Rammed 5 | . . . . 2 . . . . 1 . . . 2 . Kicked . | . . . . . . . . . . . . . . . Crushed . | . . . . . . . . . . . . . . . Highest Temperature 356 | . . 31 . . . . 189 280 356 . . . 267 229 Average Temperature 99 | . . 8 . . . . 64 99 189 . . . 95 97 Received Heat Transfer 2125 | . . 159 . 80 63 . 438 138 325 . . . 799 123 Effects 4 | . . . . . . . . . 1 . . . 3 . Interference 3 | . . . . . . . . . . . . . 3 . Matter Decay 1 | . . . . . . . . . 1 . . . . . Siege Activations . | . . . . . . . . . . . . . . . Robots Corrupted . | . . . . . . . . . . . . . . . Combat Hostiles . | . . . . . . . . . . . . . . . Parts Fried 11 | . . . . . 2 . 1 . 3 . . . 5 . Impact Corruptions 23 | . . . . . 2 . 1 . 8 . . . 12 . Robots Melted 2 | . . . . . . . 1 . . . . . . 1 Combat Hostiles 2 | . . . . . . . 1 . . . . . . 1 Parts Melted 14 | . . . . . 5 . 3 . . . . . 1 5 Heat Transferred 6759 | . . . . 888 925 . 1924 150 50 . . . 1237 1585 Parts Sabotaged . | . . . . . . . . . . . . . . . Parts Stolen . | . . . . . . . . . . . . . . . Parts Stripped . | . . . . . . . . . . . . . . . Power Chain Reactions . | . . . . . . . . . . . . . . . Missiles Intercepted . | . . . . . . . . . . . . . . . Alert | -11 -10 -10 -10 -9 -8 -7 -7 -6 -6 -5 -4 -4 -4 -3 ------- Run | Scr Mat Min Exi Min Mat Fac Gar Fac Ext Fac Fac DSF Gar Res Peak Influence 1494 | . . 80 . 36 190 86 1030 644 449 184 89 77 1494 1071 Initial 840 | . . . . . . 86 63 519 198 182 89 62 42 840 Average 469 | . . 69 . 14 118 86 574 523 297 182 89 65 536 948 Maximum Alert Level 4 | . . . . . . . 3 2 2 . . . 4 3 Low Security (%) 30 | . 100 100 . 100 100 100 3 . 8 100 100 100 29 . Level 1 18 | . . . . . . . 36 . 79 . . . 16 . Level 2 24 | . . . . . . . 22 100 11 . . . 23 . Level 3 21 | . . . . . . . 37 . . . . . 17 100 Level 4 4 | . . . . . . . . . . . . . 13 . Level 5 . | . . . . . . . . . . . . . . . High Security . | . . . . . . . . . . . . . . . Max Security . | . . . . . . . . . . . . . . . Squads Dispatched 16 | . . . . . 2 . . 5 1 2 . 1 . 5 Investigation 2 | . . . . . 1 . . . 1 . . . . . Extermination 3 | . . . . . . . . 1 . 1 . . . 1 Reinforcement 6 | . . . . . 1 . . 2 . 1 . 1 . 1 Assault 4 | . . . . . . . . 2 . . . . . 2 Garrison 1 | . . . . . . . . . . . . . . 1 Intercept . | . . . . . . . . . . . . . . . Searches Triggered . | . . . . . . . . . . . . . . . Construction Impeded 1 | . . . . . 1 . . . . . . . . . Haulers Reinforced 1 | . . . . . . . . . . 1 . . . . Active Scanning Responses . | . . . . . . . . . . . . . . . Cargo Convoy Interrupts . | . . . . . . . . . . . . . . . Stealth | -11 -10 -10 -10 -9 -8 -7 -7 -6 -6 -5 -4 -4 -4 -3 --------- Run | Scr Mat Min Exi Min Mat Fac Gar Fac Ext Fac Fac DSF Gar Res Distress Signals 6 | . 1 . . . . 1 . 1 1 . . . . 2 Communications Jammed . | . . . . . . . . . . . . . . . Distress Signals . | . . . . . . . . . . . . . . . Times Spotted 174 | . 8 5 . 19 7 1 30 12 20 3 . 4 34 31 Peak Tracking Total 16 | . 7 3 . 16 4 3 5 4 6 3 . 3 7 10 Tactical Retreats 16 | . . . . 3 . . 2 1 2 . . 1 5 2 Traps | -11 -10 -10 -10 -9 -8 -7 -7 -6 -6 -5 -4 -4 -4 -3 ------- Run | Scr Mat Min Exi Min Mat Fac Gar Fac Ext Fac Fac DSF Gar Res Traps Triggered 10 | . 1 . . . 2 . 3 . . . . . 2 2 Indirectly . | . . . . . . . . . . . . . . . Trap Hack Attempts . | . . . . . . . . . . . . . . . Triggered . | . . . . . . . . . . . . . . . Disarmed . | . . . . . . . . . . . . . . . Reprogrammed . | . . . . . . . . . . . . . . . Reused . | . . . . . . . . . . . . . . . Traps Extracted . | . . . . . . . . . . . . . . . Installed . | . . . . . . . . . . . . . . . Triggered . | . . . . . . . . . . . . . . . Machines | -11 -10 -10 -10 -9 -8 -7 -7 -6 -6 -5 -4 -4 -4 -3 ---------- Run | Scr Mat Min Exi Min Mat Fac Gar Fac Ext Fac Fac DSF Gar Res Machines Disabled 5 | . . . . 1 . . 1 2 . . . . . 1 Max in Single Turn 1 | . . . . 1 . . 1 1 . . . . . 1 Machines Sabotaged . | . . . . . . . . . . . . . . . Overloaded Fab Kills . | . . . . . . . . . . . . . . . Hacking | -11 -10 -10 -10 -9 -8 -7 -7 -6 -6 -5 -4 -4 -4 -3 --------- Run | Scr Mat Min Exi Min Mat Fac Gar Fac Ext Fac Fac DSF Gar Res Machines Accessed 19 | . . . 2 1 . 1 2 7 3 . 1 . 1 1 Terminals 14 | . . . . 1 . . 2 5 3 . 1 . 1 1 Fabricators 2 | . . . . . . . . 2 . . . . . . Repair Stations . | . . . . . . . . . . . . . . . Recycling Units . | . . . . . . . . . . . . . . . Scanalyzers . | . . . . . . . . . . . . . . . Garrison Access 1 | . . . . . . 1 . . . . . . . . Total Hacks 31 | . . . 2 2 . 2 3 11 6 . 1 . 2 2 Successful 12 | . . . 2 . . 1 1 4 2 . 1 . 1 . Failed 19 | . . . . 2 . 1 2 7 4 . . . 1 2 Catastrophic 6 | . . . . 1 . . . 3 2 . . . . . Database Lockouts . | . . . . . . . . . . . . . . . Manual 11 | . . . 1 2 . . . 5 3 . . . . . Terminals 25 | . . . . 2 . . 3 9 6 . 1 . 2 2 Fabricators 2 | . . . . . . . . 2 . . . . . . Repair Stations . | . . . . . . . . . . . . . . . Recycling Units . | . . . . . . . . . . . . . . . Scanalyzers . | . . . . . . . . . . . . . . . Garrison Access 2 | . . . . . . 2 . . . . . . . . Terminal Hacks 10 | . . . 2 . . . 1 3 2 . 1 . 1 . Record 1 | . . . 1 . . . . . . . . . . . Open Door 3 | . . . . . . . . 1 2 . . . . . Open DSF 1 | . . . . . . . . . . . 1 . . . Branch Access Points 1 | . . . . . . . . 1 . . . . . . Emergency Access Points 2 | . . . . . . . 1 . . . . . 1 . Registered Components 1 | . . . . . . . . 1 . . . . . . EX-Prototype ID Bank 1 | . . . 1 . . . . . . . . . . . Fabricator Hacks 1 | . . . . . . . . 1 . . . . . . Network Status 1 | . . . . . . . . 1 . . . . . . Repair Station Hacks . | . . . . . . . . . . . . . . . Recycling Unit Hacks . | . . . . . . . . . . . . . . . Scanalyzer . | . . . . . . . . . . . . . . . Garrison Access Hacks 1 | . . . . . . 1 . . . . . . . . Unlock Access 1 | . . . . . . 1 . . . . . . . . Unauthorized Hacks . | . . . . . . . . . . . . . . . Terminals . | . . . . . . . . . . . . . . . Fabricators . | . . . . . . . . . . . . . . . Repair Stations . | . . . . . . . . . . . . . . . Recycling Units . | . . . . . . . . . . . . . . . Scanalyzers . | . . . . . . . . . . . . . . . Garrison Access . | . . . . . . . . . . . . . . . Data Cores Recovered . | . . . . . . . . . . . . . . . Used . | . . . . . . . . . . . . . . . Hacking Detections 13 | . . . . 1 . . 2 6 2 . . . 1 1 Full Trace Events . | . . . . . . . . . . . . . . . Feedback Events . | . . . . . . . . . . . . . . . Feedback Blocked . | . . . . . . . . . . . . . . . Robot Schematics Acquired . | . . . . . . . . . . . . . . . Robots Built . | . . . . . . . . . . . . . . . Authchips . | . . . . . . . . . . . . . . . Time . | . . . . . . . . . . . . . . . Total Robot Build Rating . | . . . . . . . . . . . . . . . Part Schematics Acquired . | . . . . . . . . . . . . . . . Parts Built . | . . . . . . . . . . . . . . . Authchips . | . . . . . . . . . . . . . . . Time . | . . . . . . . . . . . . . . . Total Part Build Rating . | . . . . . . . . . . . . . . . Parts Repaired . | . . . . . . . . . . . . . . . Time . | . . . . . . . . . . . . . . . Parts Recycled . | . . . . . . . . . . . . . . . Recycled Matter . | . . . . . . . . . . . . . . . Retrieved Matter . | . . . . . . . . . . . . . . . Retrieved Components . | . . . . . . . . . . . . . . . Parts Scanalyzed . | . . . . . . . . . . . . . . . Part Schematics Acquired . | . . . . . . . . . . . . . . . Parts Damaged . | . . . . . . . . . . . . . . . Bothacking | -11 -10 -10 -10 -9 -8 -7 -7 -6 -6 -5 -4 -4 -4 -3 ------------ Run | Scr Mat Min Exi Min Mat Fac Gar Fac Ext Fac Fac DSF Gar Res Used RIF Installer . | . . . . . . . . . . . . . . . Robots Hacked . | . . . . . . . . . . . . . . . Non-combat . | . . . . . . . . . . . . . . . Combat . | . . . . . . . . . . . . . . . Robot Hacks Applied . | . . . . . . . . . . . . . . . Relay Couplers Released . | . . . . . . . . . . . . . . . Fabnet Peak Effective % . | . . . . . . . . . . . . . . . Robots Rewired . | . . . . . . . . . . . . . . . Allies Hacked . | . . . . . . . . . . . . . . . Hacks Repelled . | . . . . . . . . . . . . . . . Allies | -11 -10 -10 -10 -9 -8 -7 -7 -6 -6 -5 -4 -4 -4 -3 -------- Run | Scr Mat Min Exi Min Mat Fac Gar Fac Ext Fac Fac DSF Gar Res Total Allies 9 | . . . . 3 . . 2 . 1 . . . 3 . Largest Group 3 | . . . . 3 . . 2 . 1 . . . 2 2 Highest-Rated Group 175 | . . . . 40 . . 175 . 159 . . . 170 170 Highest-Rated Ally 159 | . . . . 16 . . 95 . 159 . . . 95 95 Total Orders . | . . . . . . . . . . . . . . . Ally Attacks 57 | . . . . 4 . . 27 . 10 . . . 8 8 Total Damage 2308 | . . . . 40 . . 989 . 455 . . . 396 428 Kills 20 | . . . . . . . 9 . 3 . . . 4 4 Allies Corrupted . | . . . . . . . . . . . . . . . Allies Melted . | . . . . . . . . . . . . . . . Intel | -11 -10 -10 -10 -9 -8 -7 -7 -6 -6 -5 -4 -4 -4 -3 ------- Run | Scr Mat Min Exi Min Mat Fac Gar Fac Ext Fac Fac DSF Gar Res Robot Analysis Total . | . . . . . . . . . . . . . . . Derelict Logs Recovered 1 | . . . . 1 . . . . . . . . . . Drone Launches . | . . . . . . . . . . . . . . . Drone Recoveries . | . . . . . . . . . . . . . . . Exploration | -11 -10 -10 -10 -9 -8 -7 -7 -6 -6 -5 -4 -4 -4 -3 ------------- Run | Scr Mat Min Exi Min Mat Fac Gar Fac Ext Fac Fac DSF Gar Res Turns Passed 7920 | . 59 146 347 546 328 57 1399 856 608 272 14 37 2602 649 Spaces Moved 4462 | 1 47 56 217 342 173 31 756 654 377 231 21 44 857 655 Core 263 | . . . . 16 . . 53 . 153 41 . . . . Treads 1110 | . . 40 217 326 173 31 187 . 8 . . . 128 . Legs 1710 | 1 47 16 . . . . 326 . 78 . . . 658 584 Wheels 176 | . . . . . . . . . . 176 . . . . Hover . | . . . . . . . . . . . . . . . Flight 1203 | . . . . . . . 190 654 138 14 21 44 71 71 Fastest Speed 33 | 120 120 120 160 50 160 160 50 83 50 50 68 68 33 33 Average Speed 126 | 120 120 148 160 154 160 160 135 108 112 114 68 68 166 64 Slowest Speed 260 | 120 120 160 160 160 160 160 260 148 203 150 68 68 250 102 Overloaded Moves . | . . . . . . . . . . . . . . . Propulsion Burnouts . | . . . . . . . . . . . . . . . Robots Hopped 5 | . . . . . . . . 3 1 . . 1 . . Cave-ins Triggered 1 | . . . . . . . . 1 . . . . . . Exploration Rate (%) 31 | 2 23 14 61 70 26 1 69 20 37 6 2 44 71 19 Regions Visited 14 Branch Regions 4 Pre-discovered Areas 1 | . . . 1 . . . . . . . . . . . Known Exits Taken 4 | . . . . . 1 1 . 1 . . 1 . . . Unknown Exits Taken 7 | 1 1 1 1 1 . . . . 1 1 . . . . Scrap Searched 1 | . . . . 1 . . . . . . . . . . Spaces Dug 25 | . . . . . 2 . 2 12 . 1 . . 3 5 Terrain Destroyed 82 | . . . . 12 2 . 2 12 1 1 . . 3 49 Melee 25 | . . . . . 2 . 2 12 . 1 . . 3 5 Projectile 9 | . . . . 7 . . . . 1 . . . . 1 AOE 48 | . . . . 5 . . . . . . . . . 43 Terrain Rammed . | . . . . . . . . . . . . . . . Walls Destroyed . | . . . . . . . . . . . . . . . Machines Disabled . | . . . . . . . . . . . . . . . Actions | -11 -10 -10 -10 -9 -8 -7 -7 -6 -6 -5 -4 -4 -4 -3 --------- Run | Scr Mat Min Exi Min Mat Fac Gar Fac Ext Fac Fac DSF Gar Res Total 6110 | . 50 84 217 359 208 37 1024 742 481 234 20 49 1823 782 Wait 1171 | . . . . . 18 . 182 53 47 1 . 7 804 59 Move 4438 | . 46 55 216 341 172 31 755 648 374 230 20 41 854 655 Hop 4 | . . . . . . . . 2 1 . . 1 . . Pick Up 17 | . 3 1 1 . 4 . . 2 1 . . . . 5 Fast Attach 16 | . . 1 . . 2 3 . . 2 1 . . 1 6 Attach 20 | . . 4 . 5 3 1 3 . . . . . 3 1 Detach 7 | . . . . 3 . 2 . . 1 . . . . 1 Swap 3 | . . . . 1 . . . 1 . . . . 1 . Drop 19 | . 1 . . 5 . . 9 . 2 . . . 1 1 Fire 185 | . . 23 . 2 . . 31 14 11 . . . 61 43 Melee 197 | . . . . . 9 . 29 22 41 2 . . 83 11 Ram 3 | . . . . . . . . . 1 . . . 2 . Kick . | . . . . . . . . . . . . . . . Crush 2 | . . . . 2 . . . . . . . . . . Escape Stasis 28 | . . . . . . . 15 . . . . . 13 . Rewire . | . . . . . . . . . . . . . . . Trap . | . . . . . . . . . . . . . . . Miscellaneous . | . . . . . . . . . . . . . . . Route ------- -11/Scrapyard -10/Materials -10/Mines -10/Exiles -9/Mines -8/Materials -7/Factory -7/Garrison (discovered 2 exits: *Fac x2) -6/Factory (discovered 4 exits: Low x2 / *Ext x2) -6/Extension -5/Factory -4/Factory -4/DSF -4/Garrison (discovered 3 exits: *Res x3) -3/Research History --------- Turn | Location | Event 1 | -11/Scrapyard | Discovered new exit (range 0) 1 | -11/Scrapyard | Entered Materials 41 | -10/Materials | Discovered new exit (range 15) 60 | -10/Materials | Entered Mines 164 | -10/Mines | Lost 4 parts (1p2n1w) 200 | -10/Mines | Deemed a non-threat by the Exiles lab entrance 200 | -10/Mines | Discovered new exit (range 5) 206 | -10/Mines | Entered Exiles 245 | -10/Exiles | Met 8R-AWN 274 | -10/Exiles | Met EX-HEX 315 | -10/Exiles | Met EX-BIN 318 | -10/Exiles | Build established: Mutant 344 | -10/Exiles | Aligned with FarCom system 346 | -10/Exiles | Given EX-Vault access code 384 | -10/Exiles | Opened EX-Vault 397 | -10/Exiles | Found AWS/Thermal 430 | -10/Exiles | Warned to stay clear of 0b10 Research branches 479 | -10/Exiles | Met EX-DEC 487 | -10/Exiles | Learned location of Zion (-7) 539 | -10/Exiles | Discovered new exit (range 10) 553 | -10/Exiles | Left Exiles lab with AWS/Thermal 553 | -10/Exiles | Entered Mines 638 | -9/Mines | Assembled infested the area 645 | -9/Mines | Assisted by bots powering up and referring to "LRC-V3" 673 | -9/Mines | Core integrity fell below 50% 687 | -9/Mines | Core integrity fell below 20% 713 | -9/Mines | Lost 3 parts (1n1u1w) 726 | -9/Mines | Destroyed 10 combat bots 1085 | -9/Mines | Learned 4 Materials zone layouts 1090 | -9/Mines | Discovered new exit (range 8) 1099 | -9/Mines | Entered Materials 1099 | -8/Materials | Evolved 4 slots: Propulsion x2, Weapon x2 1100 | -8/Materials | Identified exit to Factory 1427 | -8/Materials | Entered Factory 1427 | -7/Factory | Evolved 2 slots: Propulsion x1, Weapon x1 1427 | -7/Factory | Found Scrap Engine 1484 | -7/Factory | Identified exit to Garrison 1484 | -7/Factory | Entered Garrison 1634 | -7/Garrison | Triggered checkpoint 2128 | -7/Garrison | Lost 4 parts (2n2w) 2226 | -7/Garrison | Triggered checkpoint 2269 | -7/Garrison | Discovered new exit (range 5) 2281 | -7/Garrison | Found embedded Infiltrators 2308 | -7/Garrison | Triggered checkpoint 2350 | -7/Garrison | Triggered checkpoint 2351 | -7/Garrison | Triggered checkpoint 2556 | -7/Garrison | Build established: Construct 2661 | -7/Garrison | Heavy support dispatched to Factory 2727 | -7/Garrison | Discovered new exit (range 5) 2770 | -7/Garrison | Triggered checkpoint 2883 | -7/Garrison | Entered Factory 2883 | -6/Factory | Evolved 2 slots: Power x1, Propulsion x1 3317 | -6/Factory | Crushed by falling debris 3330 | -6/Factory | Identified exit to Lower Caves 3330 | -6/Factory | Identified exit to Extension 3583 | -6/Factory | First assault squad dispatched 3739 | -6/Factory | Entered Extension 3811 | -6/Extension | Rescued A7 4114 | -6/Extension | Disrupted transfer network 4171 | -6/Extension | Destroyed A7 4174 | -6/Extension | Extracted ID and sensor layout for unrecognized location from A7's data core 4339 | -6/Extension | Spotted B-75 Beast 4341 | -6/Extension | Spotted B-75 Beast 4346 | -6/Extension | Discovered new exit (range 3) 4347 | -6/Extension | Entered Factory 4347 | -5/Factory | Evolved 2 slots: Utility x1, Weapon x1 4599 | -5/Factory | Discovered new exit (range 15) 4619 | -5/Factory | Entered another Factory area 4619 | -4/Factory | Evolved 2 slots: Propulsion x1, Weapon x1 4633 | -4/Factory | Identified exit to DSF 4633 | -4/Factory | Entered DSF 4643 | -4/DSF | Discovered new exit (range 15) 4654 | -4/DSF | Additional patrols routed to DSF 4670 | -4/DSF | Entered Garrison 4966 | -4/Garrison | Build established: Mutant 5040 | -4/Garrison | Triggered checkpoint 5091 | -4/Garrison | Lost 4 parts (2n2w) 5190 | -4/Garrison | Rescued a captive Derelict 5190 | -4/Garrison | Rescued a captive Derelict 5984 | -4/Garrison | Triggered checkpoint 6019 | -4/Garrison | Core integrity fell below 50% 6150 | -4/Garrison | Discovered new exit (range 13) 6177 | -4/Garrison | Attempted to access garrison exit controls, blocked by remote lockdown 6348 | -4/Garrison | Triggered checkpoint 6440 | -4/Garrison | Discovered new exit (range 9) 6444 | -4/Garrison | Found embedded Infiltrators 6581 | -4/Garrison | Attempted to access garrison exit controls, blocked by remote lockdown 6650 | -4/Garrison | Triggered checkpoint 6735 | -4/Garrison | Discovered new exit (range 10) 6804 | -4/Garrison | Lost 3 parts (1p2w) 7162 | -4/Garrison | Build established: Construct 7272 | -4/Garrison | Entered Research 7272 | -3/Research | Accompanied by 2 allies 7272 | -3/Research | Evolved 2 slots: Power x2 7522 | -3/Research | First assault squad dispatched 7610 | -3/Research | Lost 3 parts (2n1w) 7742 | -3/Research | Build established: Generator-Construct 7850 | -3/Research | Garrison activated, responded to threat 7882 | -3/Research | Lost 4 parts (1p1n2w) 7913 | -3/Research | Found Unknown Launcher 7913 | -3/Research | Identified Fusion Bomb Launcher 7921 | -3/Research | Self-destructed Last Messages --------------- 07905_ Penetrated by Slug. 07907_ System corrupted: Heat flow error (+174). 07910_ C-30 ARC bursts open, deploying its payload. 07910_ G-73 Enforcer unfolds itself. 07910_ B-74 Champion unfolds itself. 07910_ E-15 Imp unfolds itself. 07911_ Catalytron disabled. 07913_ Acquired Unknown Launcher. 07913_ Identified Fusion Bomb Launcher. 07914_ E-15 Imp destroyed. 07914_ Directed Plasma Construct/G destroyed. 07914_ Arm. Scrap Engine damaged due to network destabilization (-9). 07914_ Destroyed Directed Plasma Construct/G. 07915_ Slug penetrates Catalytron. 07915_ Penetrated by Slug. 07919_ Destroyed Sml. Battery. 07920_ Multi-Antimatter Reactor destroyed. 07920_ Multi-Antimatter Reactor core remains intact and functional. 07920_ Hpw. Thermal Plasma Construct/G destroyed. 07920_ Arm. Scrap Engine damaged due to network destabilization (-6). Map ----- +----------------------------------------------------+ | ????????????# #???????????????????????????????? | | ????????????# #???????????????????????????????? | | ????????????# #???????????????????????????????? | | ??########### #???????????????????????????????? | | ??# + #???????????????????????????????? | | ??# ! # #???????????????????????????????? | | ??# # ##########??????????????????????? | | ??# "" "" # # ! ??????????????????????? | | ??# ""T"" # # #?????????????????????? | | ??# """ # # """ #?????????????????????? | | ??# !# # """ #?????????????????????? | | ??# # + """ #?????????????????????? | | ??########### # #?????????????????????? | | ????????????# # #?????????????????????? | | ????????????# # #?????????????????????? | | ###########?# ###########?????????????????????? | | # T#?????????????##?###???????????? | | # #???????????? # #???????##### | | ! + ###########?? ##??????# | | # ## ### ######## | | # ## ! p pY | | ############# ## ######## | | ??# ] # ## = bp ??????# | | ??# ! %# ## #########" # | | ??# %g g;% ; / h " ] ## # # | | / "" " ## @l "" #?# # # | | ?## "" #% = "# g [ #?# + # | | ??#! """ # %!## % #?#""" # # | | ??# # #### #######""" # # | | ??# # b ##""" # | | ??########+## ##""" ! + | | ????????????# ##""" # | | ????????????# #?""" # | | ????????????###########+########## #? # | | ????????????????????? ???????# #? # | | ??????????????????? ?????# ######+### | | ??????????????????# """ #????# | | ??????????????????# """ #????# | | ??????????????????# """ #????# | | ??????????????????# + | | ??????????????????# #######+############## | | ??????????????????+ #????????????????????? | | ??????????????????###?###?###????????????????????? | | ?????????????????????????????????????????????????? | | ?????????????????????????????????????????????????? | | ?????????????????????????????????????????????????? | | ?????????????????????????????????????????????????? | | ?????????????????????????????????????????????????? | | ?????????????????????????????????????????????????? | | | +----------------------------------------------------+ Best States ------------- Heat Dissipation 73 Energy Generation 41 Energy Capacity 706 Matter Stores 300 Matter Capacity 300 Sight Range 16 Terrain Scan Density 10 Evasion (%) 68 Recoil Reduction 5 Item Schematics ----------------- None Robot Schematics ------------------ None Fabricated ------------ Nothing Alien Tech Used ----------------- None Achievements -------------- None Challenges ------------ None Game ------ Seed ResetRiotRefractor Manual? 0 Play Time 00:59:16 Cumulative 324.8 hours Start 2022.09.06 @ 11:02:19 End 2022.09.07 @ 03:25:09 Sessions 2 Manual Loads 0 Difficulty Rogue Special Mode None Game No. 375 Rogue 375 Adventurer 0 Explorer 0 Win Type - Total 11 Types 8/0/2/1/0/0/0/0/0 Lore% 79 Gallery% 88 Achievement% 77 Wizard Run 0 Options --------- ASCII 0 Keyboard 0 Movement Numpad Keybinds 0 Fullscreen 1 Font 18/Terminus Map View 76x50 Tactical HUD 1 Map Filters NONE Filters NONE Steam 1 RUN: 14e8b8df-1fed-4ff8-a8c3-2378753bf7a3